fUSD/lending_fUSD_20240122
["ID","MTS","AMOUNT","RATE_DAILY","PERIOD"]
[312506553,1705935253613,-500.0,0.00056438,120]
[312506554,1705935253647,-1221.5,0.00056438,120]
[312506555,1705935253684,-500.0,0.00056438,120]
[312506556,1705935253722,-500.0,0.00056438,120]
[312506557,1705935253758,-1447.81,0.00056438,120]
[312506558,1705935253796,-500.0,0.00056438,120]
[312506559,1705935254007,-2684.03,0.00056438,120]
[312506560,1705935254047,-500.0,0.00056438,120]
[312506561,1705935254084,-1726.87,0.00056438,120]
[312506562,1705935254118,-970.29,0.00056438,120]
[312506563,1705935254153,-709.57,0.00056438,120]
[312506564,1705935254188,-500.0,0.00056438,120]
[312506565,1705935254221,-556.49,0.00056438,120]
[312506566,1705935254253,-500.0,0.00056438,120]
[312506567,1705935254286,-717.18,0.00056438,120]
[312506568,1705935254319,-1387.83,0.00056438,120]
[312506569,1705935254351,-1397.88,0.00056438,120]
[312506570,1705935254385,-610.22,0.00056438,120]
[312506571,1705935254420,-1037.49,0.00056438,120]
[312506572,1705935254453,-937.59,0.00056438,120]
[312506573,1705935254487,-500.0,0.00056438,120]
[312506574,1705935254520,-510.67,0.00056438,120]
[312506575,1705935254552,-721.94,0.00056438,120]
[312506576,1705935254585,-500.0,0.00056438,120]
[312506577,1705935254618,-658.41,0.00056438,120]
[312506578,1705935254650,-500.0,0.00056438,120]
[312506579,1705935254684,-500.0,0.00056438,120]
[312506580,1705935254718,-500.0,0.00056438,120]
[312506581,1705935254753,-1324.43,0.00056438,120]
[312506582,1705935254786,-1074.78,0.00056438,120]
[312506583,1705935254821,-500.0,0.00056438,120]
[312506584,1705935254857,-854.08,0.00056438,120]
[312506585,1705935254891,-500.0,0.00056438,120]
[312506586,1705935254928,-669.07,0.00056438,120]
[312506587,1705935254964,-1043.64,0.00056438,120]
[312506588,1705935255000,-1068.91,0.00056438,120]
[312506589,1705935255036,-500.0,0.00056438,120]
[312506590,1705935255069,-1264.76,0.00056438,120]
[312506591,1705935255103,-537.28,0.00056438,120]
[312506592,1705935255136,-500.0,0.00056438,120]
[312506593,1705935255170,-738.6,0.00056438,120]
[312506594,1705935255206,-660.61,0.00056438,120]
[312506595,1705935255242,-500.0,0.00056438,120]
[312506596,1705935255279,-700.4,0.00056438,120]
[312506597,1705935255313,-500.0,0.00056438,120]
[312506598,1705935255348,-821.95,0.00056438,120]
[312506599,1705935255381,-648.78,0.00056438,120]
[312506600,1705935255416,-722.7,0.00056438,120]
[312506601,1705935255449,-500.0,0.00056438,120]
[312506602,1705935255483,-1066.38,0.00056438,120]
[312506603,1705935255514,-2325.98,0.00056438,120]
[312506604,1705935255547,-500.0,0.00056438,120]
[312506605,1705935255580,-500.0,0.00056438,120]
[312506606,1705935255614,-1073.56,0.00056438,120]
[312506607,1705935255646,-500.0,0.00056438,120]
[312506608,1705935255682,-972.0,0.00056438,120]
[312506609,1705935255714,-532.36,0.00056438,120]
[312506610,1705935255748,-500.0,0.00056438,120]
[312506611,1705935255780,-1793.95,0.00056438,120]
[312506612,1705935255815,-188.05381474,0.00056438,120]
[312506613,1705935255850,-500.0,0.00056438,120]
[312506614,1705935255883,-500.0,0.00056438,120]
[312506615,1705935255915,-500.0,0.00056438,120]
[312506616,1705935255956,-960.21,0.00056438,120]
[312506617,1705935255993,-1245.11,0.00056438,120]
[312506618,1705935256028,-548.91119556,0.00056438,120]
[312506619,1705935256062,-500.0,0.00056438,120]
[312506620,1705935256097,-500.0,0.00056438,120]
[312506621,1705935256130,-1202.84,0.00056438,120]
[312506622,1705935256163,-500.0,0.00056438,120]
[312506623,1705935256196,-674.26,0.00056438,120]
[312506624,1705935256229,-1089.12,0.00056438,120]
[312506625,1705935256261,-500.0,0.00056438,120]
[312506626,1705935256292,-1148.71,0.00056438,120]
[312506627,1705935256326,-1121.58,0.00056438,120]
[312506628,1705935256358,-500.0,0.00056438,120]
[312506629,1705935256391,-782.17,0.00056438,120]
[312506630,1705935256424,-500.0,0.00056438,120]
[312506631,1705935256456,-1269.81,0.00056438,120]
[312506632,1705935256488,-500.0,0.00056438,120]
[312506633,1705935256522,-1163.79,0.00056438,120]
[312506634,1705935256555,-264.42682508,0.00056438,120]
[312506635,1705935256588,-755.55,0.00056438,120]
[312506636,1705935256621,-500.0,0.00056438,120]
[312506637,1705935256654,-590.73,0.00056438,120]
[312506638,1705935256687,-500.0,0.00056438,120]
[312506639,1705935256720,-653.94,0.00056438,120]
[312506640,1705935256751,-500.0,0.00056438,120]
[312506641,1705935256783,-1082.1,0.00056438,120]
[312506642,1705935256815,-1119.29,0.00056438,120]
[312506643,1705935256848,-884.87,0.00056438,120]
[312506644,1705935256880,-1021.29,0.00056438,120]
[312506645,1705935256915,-590.44,0.00056438,120]
[312506646,1705935256949,-507.89878157,0.00056438,120]
[312506647,1705935256983,-500.0,0.00056438,120]
[312506648,1705935257018,-557.86,0.00056438,120]
[312506649,1705935257053,-500.0,0.00056438,120]
[312506650,1705935257088,-922.84,0.00056438,120]
[312506651,1705935257121,-854.16,0.00056438,120]
[312506652,1705935257157,-1360.93,0.00056438,120]
[312506653,1705935257191,-500.0,0.00056438,120]
[312506654,1705935257228,-612.83,0.00056438,120]
[312506655,1705935257263,-500.0,0.00056438,120]
[312506656,1705935257299,-763.7,0.00056438,120]
[312506657,1705935257334,-862.53,0.00056438,120]
[312506658,1705935257369,-709.99,0.00056438,120]
[312506659,1705935257406,-716.16,0.00056438,120]
[312506660,1705935257444,-743.65,0.00056438,120]
[312506661,1705935257479,-500.0,0.00056438,120]
[312506662,1705935257514,-500.0,0.00056438,120]
[312506663,1705935257721,-501.89,0.00056438,120]
[312506664,1705935257758,-765.86,0.00056438,120]
[312506665,1705935257794,-1960.91,0.00056438,120]
[312506666,1705935257829,-500.0,0.00056438,120]
[312506667,1705935257868,-864.85,0.00056438,120]
[312506668,1705935257903,-500.0,0.00056438,120]
[312506669,1705935257941,-644.33946301,0.00056438,120]
[312506670,1705935257978,-895.93,0.00056438,120]
[312506671,1705935258015,-375.02,0.00056438,120]
[312506672,1705935258054,-652.75,0.00056438,120]
[312506673,1705935258101,-500.0,0.00056438,120]
[312506674,1705935258138,-1017.75,0.00056438,120]
[312506675,1705935258178,-718.71,0.00056438,120]
[312506676,1705935258217,-500.0,0.00056438,120]
[312506677,1705935258258,-500.0,0.00056438,120]
[312506678,1705935258299,-950.95,0.00056438,120]
[312506679,1705935258338,-1166.26,0.00056438,120]
[312506680,1705935258377,-1163.88,0.00056438,120]
[312506681,1705935258417,-706.58,0.00056438,120]
[312506682,1705935258454,-500.0,0.00056438,120]
[312506683,1705935258488,-500.0,0.00056438,120]
[312506684,1705935258521,-775.78,0.00056438,120]
[312506685,1705935258554,-500.0,0.00056438,120]
[312506686,1705935258587,-1841.93,0.00056438,120]
[312506687,1705935258622,-151.99737928,0.00056438,120]
[312506688,1705935258655,-500.0,0.00056438,120]
[312506689,1705935258690,-604.25,0.00056438,120]
[312506690,1705935258723,-500.0,0.00056438,120]
[312506691,1705935258755,-744.8,0.00056438,120]
[312506692,1705935258789,-500.0,0.00056438,120]
[312506693,1705935258821,-803.23,0.00056438,120]
[312506694,1705935258855,-500.0,0.00056438,120]
[312506695,1705935258888,-1391.49,0.00056438,120]
[312506696,1705935258922,-500.0,0.00056438,120]
[312506697,1705935258957,-743.79,0.00056438,120]
[312506698,1705935258991,-758.95,0.00056438,120]
[312506699,1705935259026,-805.81,0.00056438,120]
[312506700,1705935259060,-500.0,0.00056438,120]
[312506701,1705935259096,-575.63,0.00056438,120]
[312506702,1705935259131,-500.0,0.00056438,120]
[312506703,1705935259165,-869.66,0.00056438,120]
[312506704,1705935259198,-500.0,0.00056438,120]
[312506705,1705935259232,-500.0,0.00056438,120]
[312506706,1705935259282,-500.0,0.00056438,120]
[312506707,1705935259321,-907.16,0.00056438,120]
[312506708,1705935259359,-619.23,0.00056438,120]
[312506709,1705935259395,-789.34,0.00056438,120]
[312506710,1705935259433,-1452.65,0.00056438,120]
[312506711,1705935259468,-696.15,0.00056438,120]
[312506712,1705935259504,-241.37249357,0.00056438,120]
[312506713,1705935259539,-500.0,0.00056438,120]
[312506714,1705935259572,-593.79,0.00056438,120]
[312506715,1705935259608,-500.0,0.00056438,120]
[312506716,1705935259643,-1334.13,0.00056438,120]
[312506717,1705935259678,-500.0,0.00056438,120]
[312506718,1705935259712,-836.62,0.00056438,120]
[312506719,1705935259747,-837.72,0.00056438,120]
[312506720,1705935259781,-623.18,0.00056438,120]
[312506721,1705935259815,-1323.21,0.00056438,120]
[312506722,1705935259848,-500.0,0.00056438,120]
[312506723,1705935259882,-557.03,0.00056438,120]
[312506724,1705935259917,-609.57,0.00056438,120]
[312506725,1705935259951,-951.02,0.00056438,120]
[312506726,1705935259987,-1742.89,0.00056438,120]
[312506727,1705935260023,-500.0,0.00056438,120]
[312506728,1705935260060,-500.0,0.00056438,120]
[312506729,1705935260097,-762.89,0.00056438,120]
[312506730,1705935260132,-650.96,0.00056438,120]
[312506731,1705935260168,-500.0,0.00056438,120]
[312506732,1705935260209,-659.39,0.00056438,120]
[312506733,1705935260252,-500.0,0.00056438,120]
[312506734,1705935260291,-500.0,0.00056438,120]
[312506735,1705935260335,-500.0,0.00056438,120]
[312506736,1705935260379,-651.75,0.00056438,120]
[312506737,1705935260422,-500.0,0.00056438,120]
[312506738,1705935260467,-500.0,0.00056438,120]
[312506739,1705935260508,-852.44,0.00056438,120]
[312506740,1705935260549,-500.0,0.00056438,120]
[312506741,1705935260588,-527.12049241,0.00056438,120]
[312506742,1705935260629,-500.0,0.00056438,120]
[312506743,1705935260669,-500.0,0.00056438,120]
[312506744,1705935260710,-513.07989844,0.00056438,120]
[312506745,1705935260753,-1607.72,0.00056438,120]
[312506746,1705935260797,-1788.51,0.00056438,120]
[312506747,1705935260842,-500.0,0.00056438,120]
[312506748,1705935260894,-669.85,0.00056438,120]
[312506749,1705935260937,-744.04,0.00056438,120]
[312506750,1705935260981,-500.0,0.00056438,120]
[312506751,1705935261024,-645.14,0.00056438,120]
[312506752,1705935261068,-608.8,0.00056438,120]
[312506753,1705935261112,-500.0,0.00056438,120]
[312506754,1705935261155,-702.16,0.00056438,120]
[312506755,1705935261197,-300.0,0.00056438,120]
[312506756,1705935261239,-559.87,0.00056438,120]
[312506757,1705935261278,-500.0,0.00056438,120]
[312506758,1705935261317,-1326.85,0.00056438,120]
[312506759,1705935261357,-500.0,0.00056438,120]
[312506760,1705935261397,-1404.36,0.00056438,120]
[312506761,1705935261438,-1490.02,0.00056438,120]
[312506762,1705935261477,-500.0,0.00056438,120]
[312506763,1705935261514,-500.0,0.00056438,120]
[312506764,1705935261550,-500.0,0.00056438,120]
[312506765,1705935261587,-1273.58,0.00056438,120]
[312506766,1705935261624,-500.0,0.00056438,120]
[312506767,1705935261920,-355.83152508,0.00056438,120]
[312506768,1705935261960,-500.0,0.00056438,120]
[312506769,1705935261999,-1577.88,0.00056438,120]
[312506770,1705935262038,-850.44,0.00056438,120]
[312506771,1705935262074,-500.0,0.00056438,120]
[312506772,1705935262110,-665.34,0.00056438,120]
[312506773,1705935262147,-500.0,0.00056438,120]
[312506774,1705935262186,-836.88,0.00056438,120]
[312506775,1705935262222,-500.0,0.00056438,120]
[312506776,1705935262257,-1144.66,0.00056438,120]
[312506777,1705935262291,-500.0,0.00056438,120]
[312506778,1705935262328,-500.0,0.00056438,120]
[312506779,1705935262362,-649.5,0.00056438,120]
[312506780,1705935262398,-1273.46,0.00056438,120]
[312506781,1705935262432,-500.0,0.00056438,120]
[312506782,1705935262465,-500.0,0.00056438,120]
[312506783,1705935262498,-1047.97,0.00056438,120]
[312506784,1705935262532,-152.488592,0.00056438,120]
[312506785,1705935262565,-500.0,0.00056438,120]
[312506786,1705935262598,-500.0,0.00056438,120]
[312506787,1705935262631,-500.0,0.00056438,120]
[312506788,1705935262664,-600.2,0.00056438,120]
[312506789,1705935262697,-500.0,0.00056438,120]
[312506790,1705935262731,-754.61,0.00056438,120]
[312506791,1705935262766,-852.62,0.00056438,120]
[312506792,1705935262800,-836.94,0.00056438,120]
[312506793,1705935262832,-500.0,0.00056438,120]
[312506794,1705935262866,-1099.97,0.00056438,120]
[312506795,1705935262900,-500.0,0.00056438,120]
[312506796,1705935262941,-500.0,0.00056438,120]
[312506797,1705935262983,-500.0,0.00056438,120]
[312506798,1705935263027,-500.0,0.00056438,120]
[312506799,1705935263073,-857.36,0.00056438,120]
[312506800,1705935263115,-500.0,0.00056438,120]
[312506801,1705935263156,-597.17,0.00056438,120]
[312506802,1705935263202,-1527.68,0.00056438,120]
[312506803,1705935263240,-806.43,0.00056438,120]
[312506804,1705935263277,-515.49247107,0.00056438,120]
[312506805,1705935263313,-2110.23,0.00056438,120]
[312506806,1705935263352,-500.0,0.00056438,120]
[312506807,1705935263386,-1844.2,0.00056438,120]
[312506808,1705935263422,-500.0,0.00056438,120]
[312506809,1705935263456,-500.0,0.00056438,120]
[312506810,1705935263491,-552.99,0.00056438,120]
[312506811,1705935263523,-1034.47,0.00056438,120]
[312506812,1705935263557,-500.0,0.00056438,120]
[312506813,1705935263590,-1707.75,0.00056438,120]
[312506814,1705935263624,-666.0,0.00056438,120]
[312506815,1705935263656,-500.0,0.00056438,120]
[312506816,1705935263692,-1129.13,0.00056438,120]
[312506817,1705935263728,-240.70128309,0.00056438,120]
[312506818,1705935263762,-599.85,0.00056438,120]
[312506819,1705935263795,-500.0,0.00056438,120]
[312506820,1705935263828,-932.99,0.00056438,120]
[312506821,1705935263860,-2637.9,0.00056438,120]
[312506822,1705935263893,-1394.47,0.00056438,120]
[312506823,1705935263925,-500.0,0.00056438,120]
[312506824,1705935263957,-756.66,0.00056438,120]
[312506825,1705935263991,-500.0,0.00056438,120]
[312506826,1705935264025,-591.22,0.00056438,120]
[312506827,1705935264060,-1651.7,0.00056438,120]
[312506828,1705935264098,-500.0,0.00056438,120]
[312506829,1705935264132,-970.35,0.00056438,120]
[312506830,1705935264195,-500.0,0.00056438,120]
[312506831,1705935264249,-506.16,0.00056438,120]
[312506832,1705935264304,-920.91,0.00056438,120]
[312506833,1705935264358,-752.54,0.00056438,120]
[312506834,1705935264411,-653.54,0.00056438,120]
[312506835,1705935264467,-500.0,0.00056438,120]
[312506836,1705935264519,-1751.16,0.00056438,120]
[312506837,1705935264566,-652.01,0.00056438,120]
[312506838,1705935264612,-650.78,0.00056438,120]
[312506839,1705935264660,-631.92,0.00056438,120]
[312506840,1705935264710,-752.76,0.00056438,120]
[312506841,1705935264757,-500.0,0.00056438,120]
[312506842,1705935264804,-2270.34,0.00056438,120]
[312506843,1705935264850,-1786.0,0.00056438,120]
[312506844,1705935264897,-500.0,0.00056438,120]
[312506845,1705935264943,-1361.82,0.00056438,120]
[312506846,1705935264990,-3797.03,0.00056438,120]
[312506847,1705935265041,-1781.02,0.00056438,120]
[312506848,1705935265087,-1364.57,0.00056438,120]
[312506849,1705935265131,-1756.9,0.00056438,120]
[312506850,1705935265175,-790.71,0.00056438,120]
[312506851,1705935265220,-598.0,0.00056438,120]
[312506852,1705935265264,-609.8,0.00056438,120]
[312506853,1705935265305,-543.53,0.00056438,120]
[312506854,1705935265348,-761.51,0.00056438,120]
[312506855,1705935265390,-1909.96,0.00056438,120]
[312506856,1705935265433,-1240.73,0.00056438,120]
[312506857,1705935265476,-12125.73,0.00056438,120]
[312506858,1705935265519,-500.0,0.00056438,120]
[312506859,1705935265562,-500.0,0.00056438,120]
[312506860,1705935265604,-2651.29,0.00056438,120]
[312506861,1705935265646,-1183.91,0.00056438,120]
[312506862,1705935265693,-1284.7,0.00056438,120]
[312506863,1705935265737,-500.0,0.00056438,120]
[312506864,1705935265779,-5137.25,0.00056438,120]
[312506865,1705935265819,-500.0,0.00056438,120]
[312506866,1705935265861,-1103.44,0.00056438,120]
[312506867,1705935265905,-500.0,0.00056438,120]
[312506868,1705935265942,-500.0,0.00056438,120]
[312506869,1705935265974,-500.0,0.00056438,120]
[312506870,1705935266008,-500.0,0.00056438,120]
[312506871,1705935266042,-2169.34,0.00056438,120]
[312506872,1705935266079,-12713.95,0.00056438,120]
[312506873,1705935266111,-1882.98,0.00056438,120]
[312506874,1705935266143,-323.15934455,0.00056438,120]
[312506875,1705935266176,-967.39,0.00056438,120]
[312506876,1705935266209,-1657.15,0.00056438,120]
[312506877,1705935266243,-500.0,0.00056438,120]
[312506878,1705935266275,-943.25,0.00056438,120]
[312506879,1705935266307,-1729.69,0.00056438,120]
[312506880,1705935266340,-500.0,0.00056438,120]
[312506881,1705935266376,-569.65,0.00056438,120]
[312506882,1705935266410,-606.66,0.00056438,120]
[312506883,1705935266447,-2125.62,0.00056438,120]
[312506884,1705935266479,-1419.55,0.00056438,120]
[312506885,1705935266510,-1565.88,0.00056438,120]
[312506886,1705935266544,-689.11,0.00056438,120]
[312506887,1705935266577,-1689.91,0.00056438,120]
[312506888,1705935266610,-1921.07,0.00056438,120]
[312506889,1705935266645,-500.0,0.00056438,120]
[312506890,1705935266679,-700.71,0.00056438,120]
[312506891,1705935266714,-2015.32,0.00056438,120]
[312506892,1705935266747,-500.0,0.00056438,120]
[312506893,1705935267270,-500.0,0.00056438,120]
[312506894,1705935267353,-1539.91,0.00056438,120]
[312506895,1705935267401,-1927.03,0.00056438,120]
[312506896,1705935267439,-1314.85,0.00056438,120]
[312506897,1705935267475,-1686.46,0.00056438,120]
[312506898,1705935267511,-500.0,0.00056438,120]
[312506899,1705935267548,-677.55,0.00056438,120]
[312506900,1705935267583,-1985.74,0.00056438,120]
[312506901,1705935267616,-500.0,0.00056438,120]
[312506902,1705935267652,-550.06,0.00056438,120]
[312506903,1705935267688,-1259.3,0.00056438,120]
[312506904,1705935267721,-712.03,0.00056438,120]
[312506905,1705935267756,-736.61,0.00056438,120]
[312506906,1705935267792,-4762.26,0.00056438,120]
[312506907,1705935267830,-2461.8,0.00056438,120]
[312506908,1705935267863,-1880.63,0.00056438,120]
[312506909,1705935267897,-1557.26,0.00056438,120]
[312506910,1705935267931,-793.99,0.00056438,120]
[312506911,1705935267965,-500.0,0.00056438,120]
[312506912,1705935267998,-1379.69,0.00056438,120]
[312506913,1705935268033,-2604.87,0.00056438,120]
[312506914,1705935268066,-500.0,0.00056438,120]
[312506915,1705935268099,-932.81,0.00056438,120]
[312506916,1705935268131,-500.0,0.00056438,120]
[312506917,1705935268167,-500.0,0.00056438,120]
[312506918,1705935268206,-3105.23,0.00056438,120]
[312506919,1705935268243,-500.0,0.00056438,120]
[312506920,1705935268275,-500.0,0.00056438,120]
[312506921,1705935268309,-1967.28,0.00056438,120]
[312506922,1705935268344,-504.66,0.00056438,120]
[312506923,1705935268381,-2108.57,0.00056438,120]
[312506924,1705935268420,-5534.47,0.00056438,120]
[312506925,1705935268455,-2822.45,0.00056438,120]
[312506926,1705935268489,-1147.57,0.00056438,120]
[312506927,1705935268524,-1151.76,0.00056438,120]
[312506928,1705935268557,-500.0,0.00056438,120]
[312506929,1705935268591,-504.79,0.00056438,120]
[312506930,1705935268625,-828.94,0.00056438,120]
[312506931,1705935268659,-1921.76,0.00056438,120]
[312506932,1705935268696,-500.0,0.00056438,120]
[312506933,1705935268730,-500.0,0.00056438,120]
[312506934,1705935268763,-517.22,0.00056438,120]
[312506935,1705935268797,-836.23,0.00056438,120]
[312506936,1705935268833,-859.23,0.00056438,120]
[312506937,1705935268868,-2987.07,0.00056438,120]
[312506938,1705935268905,-500.0,0.00056438,120]
[312506939,1705935268942,-1485.29,0.00056438,120]
[312506940,1705935268979,-1113.39,0.00056438,120]
[312506941,1705935269017,-699.12,0.00056438,120]
[312506942,1705935269053,-500.0,0.00056438,120]
[312506943,1705935269090,-1325.84,0.00056438,120]
[312506944,1705935269126,-610.32,0.00056438,120]
[312506945,1705935269162,-500.0,0.00056438,120]
[312506946,1705935269200,-500.0,0.00056438,120]
[312506947,1705935269237,-977.5,0.00056438,120]
[312506948,1705935269274,-1197.96,0.00056438,120]
[312506949,1705935269308,-1447.9,0.00056438,120]
[312506950,1705935269341,-680.84,0.00056438,120]
[312506951,1705935269377,-768.63,0.00056438,120]
[312506952,1705935269410,-6620.65,0.00056438,120]
[312506953,1705935269447,-4857.5,0.00056438,120]
[312506954,1705935269480,-2086.5,0.00056438,120]
[312506955,1705935269513,-500.0,0.00056438,120]
[312506956,1705935269546,-500.0,0.00056438,120]
[312506957,1705935269578,-1199.49,0.00056438,120]
[312506958,1705935269611,-2054.67,0.00056438,120]
[312506959,1705935269644,-500.0,0.00056438,120]
[312506960,1705935269677,-500.0,0.00056438,120]
[312506961,1705935269710,-500.0,0.00056438,120]
[312506962,1705935269744,-519.19,0.00056438,120]
[312506963,1705935269778,-886.41,0.00056438,120]
[312506964,1705935269812,-500.0,0.00056438,120]
[312506965,1705935269845,-500.0,0.00056438,120]
[312506966,1705935269878,-10248.86,0.00056438,120]
[312506967,1705935269911,-500.0,0.00056438,120]
[312506968,1705935269948,-1103.75,0.00056438,120]
[312506969,1705935269982,-500.0,0.00056438,120]
[312506970,1705935270018,-751.87,0.00056438,120]
[312506971,1705935270054,-3237.18,0.00056438,120]
[312506972,1705935270090,-2009.92,0.00056438,120]
[312506973,1705935270125,-789.59,0.00056438,120]
[312506974,1705935270160,-685.82,0.00056438,120]
[312506975,1705935270200,-500.0,0.00056438,120]
[312506976,1705935270238,-4264.33,0.00056438,120]
[312506977,1705935270276,-1535.34,0.00056438,120]
[312506978,1705935270311,-809.7,0.00056438,120]
[312506979,1705935270346,-1154.09,0.00056438,120]
[312506980,1705935270380,-1697.89,0.00056438,120]
[312506981,1705935270414,-1596.19,0.00056438,120]
[312506982,1705935270451,-1154.51,0.00056438,120]
[312506983,1705935270483,-964.24,0.00056438,120]
[312506984,1705935270515,-1595.7,0.00056438,120]
[312506985,1705935270547,-500.0,0.00056438,120]
[312506986,1705935270587,-500.0,0.00056438,120]
[312506987,1705935270622,-2914.21,0.00056438,120]
[312506988,1705935270655,-1552.88,0.00056438,120]
[312506989,1705935270690,-608.04,0.00056438,120]
[312506990,1705935270722,-700.43,0.00056438,120]
[312506991,1705935270755,-980.8,0.00056438,120]
[312506992,1705935270787,-696.01,0.00056438,120]
[312506993,1705935270980,-1757.28,0.00056438,120]
[312506994,1705935271017,-665.51,0.00056438,120]
[312506995,1705935271054,-1171.38,0.00056438,120]
[312506996,1705935271087,-1708.66,0.00056438,120]
[312506997,1705935271120,-500.0,0.00056438,120]
[312506998,1705935271152,-559.65,0.00056438,120]
[312506999,1705935271184,-1273.88,0.00056438,120]
[312507000,1705935271217,-533.7798685,0.00056438,120]
[312507001,1705935271250,-536.79,0.00056438,120]
[312507002,1705935271282,-520.77,0.00056438,120]
[312507003,1705935271316,-1047.69,0.00056438,120]
[312507004,1705935271350,-714.84,0.00056438,120]
[312507005,1705935271383,-1774.41,0.00056438,120]
[312507006,1705935271416,-1003.68,0.00056438,120]
[312507007,1705935271453,-1882.22,0.00056438,120]
[312507008,1705935271489,-2030.56,0.00056438,120]
[312507009,1705935271524,-500.0,0.00056438,120]
[312507010,1705935271558,-1118.09,0.00056438,120]
[312507011,1705935271593,-1661.46,0.00056438,120]
[312507012,1705935271628,-2145.54,0.00056438,120]
[312507013,1705935271662,-500.0,0.00056438,120]
[312507014,1705935271699,-150.40437152,0.00056638,69]
[312507015,1705935271733,-3456.2,0.00056686,117]
[312507016,1705935271768,-500.0,0.00056712,120]
[312507017,1705935271802,-356.37446147,0.00056712,120]
[312507018,1705935271836,-500.0,0.00056712,120]
[312507019,1705935271869,-500.0,0.00056712,120]
[312507020,1705935271903,-500.0,0.00056712,120]
[312507021,1705935271938,-500.0,0.00056712,120]
[312507022,1705935271974,-320.85472442,0.00056712,120]
[312507023,1705935272009,-500.0,0.00056712,120]
[312507024,1705935272045,-559.06,0.00056712,120]
[312507025,1705935272079,-500.0,0.00056712,120]
[312507026,1705935272119,-500.0,0.00056712,120]
[312507027,1705935272157,-500.0,0.00056712,120]
[312507028,1705935272203,-500.0,0.00056712,120]
[312507029,1705935272245,-500.0,0.00056712,120]
[312507031,1705935272289,-500.0,0.00056712,120]
[312507032,1705935272331,-500.0,0.00056712,120]
[312507033,1705935272371,-500.0,0.00056712,120]
[312507034,1705935272406,-500.0,0.00056712,120]
[312507035,1705935272441,-500.0,0.00056712,120]
[312507036,1705935272474,-500.0,0.00056712,120]
[312507037,1705935272507,-500.0,0.00056712,120]
[312507038,1705935272541,-500.0,0.00056712,120]
[312507039,1705935272574,-626.59,0.00056712,120]
[312507041,1705935272607,-500.0,0.00056712,120]
[312507042,1705935272640,-500.0,0.00056712,120]
[312507043,1705935272674,-500.0,0.00056712,120]
[312507044,1705935272707,-539.44637338,0.00056712,120]
[312507045,1705935272741,-500.0,0.00056712,120]
[312507046,1705935272774,-500.0,0.00056712,120]
[312507047,1705935272808,-500.0,0.00056712,120]
[312507048,1705935272841,-711.06,0.00056712,120]
[312507050,1705935272874,-714.27,0.00056712,120]
[312507051,1705935272906,-918.11,0.00056712,120]
[312507052,1705935272940,-500.0,0.00056712,120]
[312507053,1705935272974,-687.84,0.00056712,120]
[312507054,1705935273007,-500.0,0.00056712,120]
[312507055,1705935273041,-500.0,0.00056712,120]